lending/lending_fUSD_20240605
["ID","MTS","AMOUNT","RATE_DAILY","PERIOD"]
[328579551,1717560638473,-153.4,0.00028918,2]
[328579552,1717560638485,-265.85210799,0.00028999,2]
[328579553,1717560638495,-178.80239018,0.00029,2]
[328579566,1717560640608,-321.19760982,0.00029,2]
[328579567,1717560640618,-427.26026297,0.00029,2]
[328579568,1717560640659,-3739.13937252,0.00029,2]
[328579569,1717560640669,-5000.0,0.00029,7]
[328579570,1717560640679,-1350.0,0.00029,2]
[328579571,1717560640690,-153.4,0.00029022,2]
[328579572,1717560640700,-257.6631,0.00029115,2]
[328579573,1717560640709,-3428.9362,0.00029115,2]
[328579574,1717560640718,-153.4,0.00029126,2]
[328579575,1717560640728,-211.3476,0.00029129,2]
[328579576,1717560640737,-500.0,0.000292,2]
[328579577,1717560640746,-500.0,0.00029214,2]
[328579578,1717560640756,-200.0,0.00029214,2]
[328579579,1717560640765,-153.4,0.00029229,2]
[328579580,1717560640774,-163.56,0.00029236,2]
[328579581,1717560640783,-153.72607524,0.00029329,2]
[328579582,1717560640793,-153.4,0.00029333,2]
[328579583,1717560640802,-156.97895172,0.0002934,2]
[328579584,1717560640811,-5000.0,0.00029387,2]
[328579585,1717560640821,-151.88147835,0.00029393,2]
[328579586,1717560640831,-500.0,0.000294,2]
[328579587,1717560640841,-152.16049693,0.00029426,2]
[328579588,1717560640850,-155.90860311,0.00029486,2]
[328579589,1717560640860,-226.01793324,0.000295,3]
[328579590,1717560640870,-2049.96323287,0.00029524,15]
[328579591,1717560640880,-217.0,0.0002953,2]
[328579592,1717560640889,-153.72607524,0.00029544,2]
[328579593,1717560640898,-2049.96323279,0.00029566,15]
[328579594,1717560640907,-500.0,0.000296,2]
[328579595,1717560640917,-2049.96323279,0.00029608,15]
[328579596,1717560640926,-424.81822018,0.0002962,2]
[328579597,1717560640936,-4816.0721,0.00029622,2]
[328579598,1717560640945,-2500.0,0.00029622,2]
[328579599,1717560640954,-151.88147835,0.00029624,2]
[328579600,1717560640963,-155.69993896,0.00029645,2]
[328579601,1717560640973,-2049.96323279,0.00029649,15]
[328579602,1717560640982,-151.78981399,0.00029686,2]
[328579603,1717560640991,-152.16049693,0.00029688,2]
[328579604,1717560641001,-2049.96323279,0.00029691,15]
[328579605,1717560641011,-152.16049693,0.00029698,2]
[328579606,1717560641020,-45602.1947,0.00029722,2]
[328579607,1717560641030,-2049.96323279,0.00029733,15]
[328579608,1717560641039,-500.0,0.00029759,2]
[328579609,1717560641048,-3912.83735726,0.00029767,15]
[328579610,1717560641058,-2049.96323279,0.00029775,15]
[328579611,1717560641067,-153.72607524,0.00029791,2]
[328579612,1717560641077,-150.65880798,0.00029799,2]
[328579613,1717560641087,-500.0,0.000298,2]
[328579614,1717560641096,-3912.83735726,0.000298,15]
[328579615,1717560641106,-251.47903097,0.000298,2]
[328579616,1717560641115,-334.04974451,0.000298,2]
[328579617,1717560641125,-300.37,0.00029808,30]
[328579618,1717560641134,-2049.96323279,0.00029816,15]
[328579619,1717560641144,-166.66666666,0.00029822,2]
[328579620,1717560641153,-3912.83735726,0.00029833,15]
[328579621,1717560641163,-2049.96323279,0.00029858,15]
[328579622,1717560641173,-3912.83735726,0.00029867,15]
[328579623,1717560641183,-2569.0,0.00029899,9]
[328579624,1717560641192,-500.0,0.00029899,6]
[328579625,1717560641202,-500.0,0.00029899,6]
[328579626,1717560641211,-400.7603229,0.00029899,6]
[328579627,1717560641220,-500.0,0.00029899,6]
[328579628,1717560641230,-500.0,0.00029899,6]
[328579629,1717560641239,-500.0,0.00029899,6]
[328579630,1717560641250,-500.0,0.00029899,6]
[328579631,1717560641259,-500.0,0.00029899,6]
[328579632,1717560641268,-500.0,0.00029899,6]
[328579633,1717560641278,-500.0,0.00029899,6]
[328579634,1717560641287,-500.0,0.00029899,6]
[328579635,1717560641297,-500.0,0.00029899,6]
[328579636,1717560641307,-500.0,0.00029899,6]
[328579637,1717560641317,-500.0,0.00029899,6]
[328579638,1717560641327,-500.0,0.00029899,6]
[328579639,1717560641337,-500.0,0.00029899,6]
[328579640,1717560641347,-500.0,0.00029899,6]
[328579641,1717560641357,-500.0,0.00029899,6]
[328579642,1717560641367,-500.0,0.00029899,6]
[328579643,1717560641376,-500.0,0.00029899,6]
[328579644,1717560641385,-500.0,0.00029899,6]
[328579645,1717560641395,-500.0,0.00029899,6]
[328579646,1717560641404,-500.0,0.00029899,6]
[328579647,1717560641414,-500.0,0.00029899,6]
[328579648,1717560641423,-500.0,0.00029899,6]
[328579649,1717560641432,-500.0,0.00029899,6]
[328579650,1717560641442,-500.0,0.00029899,6]
[328579651,1717560641451,-510.41865141,0.00029899,6]
[328579652,1717560641460,-1759.09,0.00029899,6]
[328579653,1717560641470,-1759.09,0.00029899,6]
[328579654,1717560641483,-500.0,0.00029899,6]
[328579655,1717560641493,-500.0,0.00029899,6]
[328579656,1717560641502,-500.0,0.00029899,6]
[328579657,1717560641512,-500.0,0.00029899,6]
[328579658,1717560641521,-519.58622399,0.00029899,6]
[328579659,1717560641530,-4780.66,0.00029899,6]
[328579660,1717560641539,-4780.66,0.00029899,6]
[328579661,1717560641549,-500.0,0.00029899,6]
[328579662,1717560641561,-500.0,0.00029899,6]
[328579663,1717560641572,-500.0,0.00029899,6]
[328579664,1717560641581,-500.0,0.00029899,6]
[328579665,1717560641591,-500.0,0.00029899,6]
[328579667,1717560641600,-500.0,0.00029899,6]
[328579669,1717560641609,-298.25178256,0.00029899,6]
[328579670,1717560641617,-500.0,0.00029899,6]
[328579671,1717560641627,-524.27745602,0.00029899,6]
[328579672,1717560641635,-500.0,0.00029899,6]
[328579673,1717560641645,-500.0,0.00029899,6]
[328579674,1717560641654,-500.0,0.00029899,6]
[328579675,1717560641664,-500.0,0.00029899,6]
[328579676,1717560641673,-100000.0,0.000299,2]
[328579677,1717560641682,-1000.0,0.000299,2]
[328579678,1717560641858,-703.35977609,0.000299,4]
[328579679,1717560641868,-2010.60105363,0.000299,2]
[328579680,1717560641877,-21507.50602386,0.000299,2]
[328579681,1717560641886,-500.0,0.000299,2]
[328579682,1717560641896,-396.8958,0.000299,2]
[328579683,1717560641907,-245000.0,0.000299,2]
[328579684,1717560641916,-3912.83735726,0.000299,15]
[328579685,1717560641927,-2132.18664831,0.000299,2]
[328579686,1717560641939,-423.51596312,0.000299,2]
[328579687,1717560641948,-2049.96323279,0.000299,15]
[328579688,1717560641957,-153.72607524,0.00029922,2]
[328579689,1717560641967,-153.79615562,0.00029924,2]
[328579690,1717560641976,-155.69993896,0.00029954,2]
[328579691,1717560641985,-155.22145543,0.00029958,2]
[328579692,1717560641995,-158.53919281,0.00029978,2]
[328579693,1717560642004,-153.71,0.0002999,2]
[328579694,1717560642013,-217.0,0.0002999,2]
[328579695,1717560642022,-153.71,0.0002999,2]
[328579696,1717560642031,-153.71,0.0002999,2]
[328579697,1717560642040,-153.71,0.0002999,2]
[328579698,1717560642050,-153.71,0.0002999,2]
[328579699,1717560642059,-153.71,0.0002999,2]
[328579700,1717560642068,-153.71,0.0002999,2]
[328579701,1717560642078,-153.71,0.0002999,2]
[328579702,1717560642087,-153.71,0.0002999,2]
[328579703,1717560642096,-153.71,0.0002999,2]
[328579704,1717560642106,-153.71,0.0002999,2]
[328579705,1717560642115,-153.71,0.0002999,2]
[328579706,1717560642124,-153.71,0.0002999,2]
[328579707,1717560642134,-153.71,0.0002999,2]
[328579708,1717560642143,-1166.00806415,0.00029998,2]
[328579709,1717560642152,-1899.51336956,0.00029998,2]
[328579710,1717560642162,-856.38599632,0.00029998,3]
[328579711,1717560642171,-174.19755965,0.00029998,10]
[328579712,1717560642180,-618.17336835,0.00029998,2]
[328579713,1717560642190,-151.0,0.00029998,5]
[328579714,1717560642199,-5593.12768824,0.00029999,2]
[328579715,1717560642208,-4024.29763669,0.00029999,2]
[328579716,1717560642217,-201.84778355,0.00029999,2]
[328579717,1717560642226,-514.28511766,0.00029999,2]
[328579718,1717560642235,-521.76760321,0.00029999,2]
[328579719,1717560642244,-500.0,0.00029999,6]
[328579720,1717560642253,-417.21413027,0.00029999,6]
[328579721,1717560642263,-500.0,0.00029999,6]
[328579722,1717560642271,-500.0,0.00029999,6]
[328579723,1717560642280,-500.0,0.00029999,6]
[328579724,1717560642290,-500.0,0.00029999,6]
[328579725,1717560642298,-500.0,0.00029999,6]
[328579726,1717560642307,-258.92,0.00029999,6]
[328579727,1717560642316,-177.24249635,0.00029999,6]
[328579728,1717560642325,-401.86345424,0.00029999,2]
[328579729,1717560642334,-500.0,0.00029999,6]
[328579730,1717560642343,-500.0,0.00029999,6]
[328579731,1717560642352,-575.38864271,0.00029999,6]
[328579732,1717560642361,-500.0,0.00029999,6]
[328579733,1717560642370,-500.0,0.00029999,6]
[328579734,1717560642379,-500.0,0.00029999,6]
[328579735,1717560642388,-500.0,0.00029999,6]
[328579736,1717560642397,-500.0,0.00029999,6]
[328579737,1717560642406,-500.0,0.00029999,6]
[328579738,1717560642415,-500.0,0.00029999,6]
[328579739,1717560642426,-500.0,0.00029999,6]
[328579740,1717560642437,-500.0,0.00029999,6]
[328579741,1717560642448,-421.73287753,0.00029999,6]
[328579742,1717560642458,-500.0,0.00029999,6]
[328579743,1717560642468,-500.0,0.00029999,6]
[328579744,1717560642481,-500.0,0.00029999,6]
[328579745,1717560642490,-500.0,0.00029999,6]
[328579746,1717560642499,-500.0,0.00029999,6]
[328579747,1717560642509,-500.0,0.00029999,6]
[328579748,1717560642518,-500.0,0.00029999,6]
[328579749,1717560642528,-500.0,0.00029999,6]
[328579750,1717560642537,-500.0,0.00029999,6]
[328579751,1717560642547,-500.0,0.00029999,6]
[328579752,1717560642562,-500.0,0.00029999,6]
[328579753,1717560642571,-500.0,0.00029999,6]
[328579754,1717560642580,-159.25,0.00029999,6]
[328579755,1717560642590,-500.0,0.00029999,6]
[328579756,1717560642599,-500.0,0.00029999,6]
[328579757,1717560642608,-636.60782121,0.00029999,6]
[328579758,1717560642617,-500.0,0.00029999,6]
[328579759,1717560642626,-500.0,0.00029999,6]
[328579760,1717560642636,-500.0,0.00029999,6]
[328579761,1717560642645,-500.0,0.00029999,6]
[328579762,1717560642655,-500.0,0.00029999,6]
[328579763,1717560642664,-500.0,0.00029999,6]
[328579764,1717560642673,-500.0,0.00029999,6]
[328579765,1717560642682,-500.0,0.00029999,6]
[328579766,1717560642691,-500.0,0.00029999,6]
[328579767,1717560642700,-500.0,0.00029999,6]
[328579768,1717560642710,-500.0,0.00029999,6]
[328579769,1717560642720,-500.0,0.00029999,6]
[328579770,1717560642729,-500.0,0.00029999,6]
[328579771,1717560642740,-250.56806366,0.00029999,6]
[328579772,1717560642751,-500.0,0.00029999,6]
[328579773,1717560642760,-500.0,0.00029999,6]
[328579774,1717560642771,-500.0,0.00029999,6]
[328579775,1717560642782,-500.0,0.00029999,6]
[328579776,1717560642792,-215.95612273,0.00029999,6]
[328579777,1717560642802,-500.0,0.00029999,6]
[328579778,1717560642811,-500.0,0.00029999,6]
[328579779,1717560642821,-500.0,0.00029999,6]
[328579780,1717560642830,-510.74724049,0.00029999,6]
[328579781,1717560642839,-500.0,0.00029999,6]
[328579782,1717560642848,-500.0,0.00029999,6]
[328579783,1717560642857,-500.0,0.00029999,6]
[328579784,1717560642865,-500.0,0.00029999,6]
[328579785,1717560642874,-500.0,0.00029999,6]
[328579786,1717560642883,-500.0,0.00029999,6]
[328579787,1717560642892,-500.0,0.00029999,6]
[328579788,1717560642901,-500.0,0.00029999,6]
[328579789,1717560642910,-500.0,0.00029999,6]
[328579790,1717560642920,-500.0,0.00029999,6]
[328579791,1717560642929,-612.98713589,0.00029999,6]
[328579792,1717560642939,-510.19384503,0.00029999,6]
[328579793,1717560642949,-508.57034867,0.00029999,6]
[328579794,1717560642958,-1759.09,0.00029999,6]
[328579795,1717560642967,-1759.09,0.00029999,6]
[328579796,1717560642976,-1759.09,0.00029999,6]
[328579798,1717560642985,-1759.09,0.00029999,6]
[328579799,1717560642994,-1759.09,0.00029999,6]
[328579800,1717560643003,-1759.09,0.00029999,6]
[328579802,1717560643012,-1759.09,0.00029999,6]
[328579803,1717560643021,-1759.09,0.00029999,6]
[328579804,1717560643031,-1759.09,0.00029999,6]
[328579805,1717560643040,-500.0,0.00029999,6]
[328579806,1717560643049,-1759.09,0.00029999,6]
[328579807,1717560643059,-1759.09,0.00029999,6]
[328579808,1717560643068,-500.0,0.00029999,6]
[328579809,1717560643077,-1759.09,0.00029999,6]
[328579810,1717560643087,-500.0,0.00029999,6]
[328579811,1717560643098,-1759.09,0.00029999,6]
[328579812,1717560643107,-1759.09,0.00029999,6]
[328579813,1717560643117,-1759.09,0.00029999,6]
[328579814,1717560643126,-1759.09,0.00029999,6]
[328579815,1717560643135,-1759.09,0.00029999,6]
[328579816,1717560643145,-1759.09,0.00029999,6]
[328579817,1717560643154,-1759.09,0.00029999,6]
[328579818,1717560643163,-511.21900342,0.00029999,6]
[328579819,1717560643173,-1759.09,0.00029999,6]
[328579820,1717560643182,-1759.09,0.00029999,6]
[328579821,1717560643192,-1759.31854402,0.00029999,6]
[328579822,1717560643201,-4780.66,0.00029999,6]
[328579823,1717560643210,-4780.66,0.00029999,6]
[328579824,1717560643222,-500.0,0.00029999,6]
[328579825,1717560643231,-4780.66,0.00029999,6]
[328579826,1717560643241,-500.0,0.00029999,6]
[328579827,1717560643251,-4780.66,0.00029999,6]
[328579828,1717560643262,-4780.66,0.00029999,6]
[328579829,1717560643272,-500.0,0.00029999,6]
[328579830,1717560643281,-4780.66,0.00029999,6]
[328579831,1717560643291,-518.7780193,0.00029999,6]
[328579832,1717560643300,-4780.66,0.00029999,6]
[328579833,1717560643309,-4780.66,0.00029999,6]
[328579834,1717560643318,-4780.66,0.00029999,6]
[328579835,1717560643328,-4780.66,0.00029999,6]
[328579836,1717560643337,-4780.66,0.00029999,6]
[328579837,1717560643346,-4780.66,0.00029999,6]
[328579838,1717560643356,-4780.66,0.00029999,6]
[328579839,1717560643365,-4780.66,0.00029999,6]
[328579840,1717560643374,-4780.66,0.00029999,6]
[328579841,1717560643383,-4780.66,0.00029999,6]
[328579842,1717560643392,-4780.66,0.00029999,6]
[328579843,1717560643401,-4780.66,0.00029999,6]
[328579844,1717560643410,-263.22578805,0.00029999,6]
[328579845,1717560643419,-4780.66,0.00029999,6]
[328579846,1717560643428,-4780.66,0.00029999,6]
[328579847,1717560643437,-4780.66,0.00029999,6]
[328579848,1717560643446,-4780.74000002,0.00029999,6]
[328579849,1717560643455,-500.0,0.00029999,6]
[328579850,1717560643464,-500.0,0.00029999,6]
[328579851,1717560643475,-500.0,0.00029999,6]
[328579852,1717560643488,-500.0,0.00029999,6]
[328579853,1717560643497,-293.99724083,0.00029999,6]
[328579854,1717560643506,-500.0,0.00029999,6]
[328579855,1717560643515,-500.0,0.00029999,6]
[328579856,1717560643527,-500.0,0.00029999,6]
[328579857,1717560643535,-500.0,0.00029999,6]
[328579858,1717560643544,-500.0,0.00029999,6]
[328579859,1717560643556,-500.0,0.00029999,6]
[328579860,1717560643566,-500.0,0.00029999,6]
[328579861,1717560643575,-500.0,0.00029999,6]
[328579862,1717560643584,-500.0,0.00029999,6]
[328579863,1717560643593,-500.0,0.00029999,6]
[328579864,1717560643602,-500.0,0.00029999,6]
[328579865,1717560643612,-500.0,0.00029999,6]
[328579866,1717560643621,-500.0,0.00029999,6]
[328579867,1717560643630,-500.0,0.00029999,6]
[328579868,1717560643639,-500.0,0.00029999,6]
[328579869,1717560643649,-500.0,0.00029999,6]
[328579870,1717560643658,-191.87778414,0.00029999,6]
[328579871,1717560643667,-416.00773018,0.0003,5]
[328579872,1717560643677,-210322.76155155,0.0003,13]
[328579874,1717560643694,-1140.96863018,0.0003,13]
[328579875,1717560643706,-99047.30177448,0.0003,13]
[328579876,1717560643717,-1491.5592508,0.0003,13]
[328579877,1717560643746,-573.92869327,0.00029899,6]
[328579878,1717560643756,-955.59,0.00029899,6]
[328579879,1717560643765,-955.59,0.00029899,6]
[328579880,1717560643775,-955.59,0.00029999,6]
[328579881,1717560643785,-2531.92503846,0.0003,13]
[328579882,1717560643796,-1619.99994251,0.0003,13]
[328579883,1717560643811,-500.0,0.00029899,6]
[328579884,1717560643821,-33073.69925042,0.0003,13]
[328579901,1717560647181,-4820.11440419,0.0002,2]
[328579902,1717560647340,-16104.19889294,0.0002,2]
[328579903,1717560647352,-3725.20691742,0.0002,2]
[328579904,1717560647362,-500.0,0.00029899,6]
[328579905,1717560647372,-364.64296836,0.00029998,2]
[328579906,1717560647381,-955.59,0.00029999,6]
[328579907,1717560647390,-955.59,0.00029999,6]
[328579908,1717560647399,-500.0,0.00029999,6]
[328579909,1717560647408,-955.59,0.00029999,6]
[328579910,1717560647417,-500.0,0.00029999,6]
[328579911,1717560647427,-955.59,0.00029999,6]
[328579912,1717560647436,-500.0,0.00029999,6]
[328579913,1717560647445,-714.46272422,0.00029999,6]
[328579914,1717560647457,-241.12727578,0.00029999,6]
[328579915,1717560647466,-554.80307488,0.00029999,6]
[328579916,1717560647476,-955.59,0.00029999,6]
[328579917,1717560647489,-955.59,0.00029999,6]
[328579918,1717560647498,-955.59,0.00029999,6]
[328579919,1717560647507,-955.59,0.00029999,6]
[328579920,1717560647517,-955.59,0.00029999,6]
[328579921,1717560647527,-9670.89276934,0.0003,13]
[328579922,1717560647631,-6407.4136246,0.0003,13]
[328579923,1717560648016,-2052.2251536,0.0003,13]
[328579924,1717560648064,-41.00237731,0.0003,13]
[328579925,1717560648088,-500.0,0.0002,2]
[328579926,1717560648098,-1312.17,0.00029899,2]
[328579927,1717560648112,-226.20378216,0.00029899,2]
[328579928,1717560648121,-537.10690865,0.00029999,6]
[328579929,1717560648133,-418.48309135,0.00029999,6]
[328579930,1717560648142,-866.26056101,0.0003,13]
[328579931,1717560648154,-2089.86470127,0.0003,13]
[328579932,1717560648165,-278.97054483,0.0003,13]
[328579955,1717561833720,-150.0,0.00019725,2]
[328579956,1717561833730,-279.75835285,0.0002,2]
[328579957,1717561833784,-287.89476307,0.0002,2]
[328579958,1717561833847,-480.97940482,0.0002,2]
[328579959,1717561833856,-548.76898063,0.0002,2]
[328579960,1717561833865,-226.57668191,0.000201,2]
[328579961,1717561833875,-158.94995359,0.00021697,2]
[328579962,1717561833888,-210.0,0.00021698,2]
[328579963,1717561833897,-154.99,0.00024384,2]
[328579964,1717561833912,-155.88,0.00024384,2]
[328579965,1717561833922,-150.99,0.00024384,2]
[328579966,1717561833933,-499.99,0.00024384,2]
[328579967,1717561833943,-3220.22131901,0.00024384,2]
[328579968,1717561833956,-293.43812873,0.00024384,2]
[328579969,1717561833968,-2049.42770371,0.00024384,2]
[328579970,1717561838182,-4436.90284855,0.00024384,2]
[328579972,1717561838192,-1250.0,0.00025,2]
[328579974,1717561838201,-456.39,0.00025,2]
[328579976,1717561838210,-65.24235341,0.00025692,2]
[328579978,1717561838221,-429.93764659,0.00025692,2]
[328579980,1717561838229,-4835.4,0.00026425,2]
[328579981,1717561838237,-5000.0,0.00027,2]
[328579982,1717561838246,-1300.0,0.00027,2]
[328579983,1717561838255,-848.67,0.00027379,2]
[328579984,1717561838264,-1560.47,0.00027638,2]
[328579985,1717561838274,-250.0,0.00027665,2]
[328579986,1717561838284,-250.0,0.00027702,2]
[328579987,1717561838293,-21332.44,0.00027744,2]
[328579988,1717561838303,-250.0,0.00027751,2]
[328579989,1717561838313,-495.18,0.00027956,2]
[328579990,1717561838322,-1000.0,0.00028185,2]
[328579991,1717561838331,-376.72,0.00028357,2]
[328579992,1717561838340,-1258.37601703,0.00028473,2]
[328579993,1717561838352,-1887.24352,0.00028473,2]
[328579994,1717561838363,-1832.26046297,0.00028473,2]
[328579995,1717561838373,-1425.46008406,0.00028498,2]
[328579996,1717561838382,-265.85210799,0.0002899,2]
[328579997,1717561838392,-165.51735098,0.00029,2]
[328579998,1717561838403,-334.48264902,0.00029,2]
[328579999,1717561838413,-1350.0,0.00029,2]
[328580000,1717561838423,-151.88147835,0.0002932,2]
[328580001,1717561838434,-153.79615562,0.00029347,2]
[328580002,1717561838443,-151.78981399,0.00029387,2]
[328580003,1717561838453,-155.0,0.00029398,2]
[328580004,1717561838463,-1111.7222335,0.000294,2]
[328580005,1717561838472,-156.46295835,0.00029412,2]
[328580006,1717561838481,-649.0,0.000295,8]
[328580007,1717561838491,-2064.8492,0.00029522,2]
[328580008,1717561838500,-211.3476,0.00029522,2]
[328580009,1717561838509,-257.6631,0.00029522,2]
[328580010,1717561838519,-2500.0,0.00029522,2]
[328580011,1717561838528,-721.2448,0.00029522,2]
[328580012,1717561838537,-155.22145543,0.00029612,2]
[328580013,1717561838548,-2869.41406206,0.00029619,15]
[328580014,1717561838558,-152.16049693,0.0002962,2]
[328580015,1717561838567,-165.80199701,0.0002962,2]
[328580016,1717561838577,-500.0,0.00029622,2]
[328580017,1717561838585,-9327.81266202,0.00029622,2]
[328580018,1717561838600,-1325.81220542,0.00029622,2]
[328580019,1717561838611,-1024.00632696,0.00029622,2]
[328580020,1717561838622,-4677.9289797,0.00029622,2]
[328580021,1717561838637,-360.51074572,0.00029622,2]
[328580022,1717561838648,-1924.09839103,0.00029622,2]
[328580029,1717561841111,-1121.9700004,0.00025564,2]
[328580030,1717561841301,-437.6299796,0.00025564,2]
[328580031,1717561841311,-2529.39205803,0.00029622,2]
[328580032,1717561842330,-502.38314178,0.00029622,2]
[328580053,1717561843348,-2307.0846677,0.00029622,2]
[328580055,1717561843524,-5001.69745492,0.00029622,2]
[328580056,1717561843699,-9838.33132677,0.00029622,2]
[328580057,1717561843710,-67157.33657932,0.00029622,2]
[328580058,1717561843722,-3319.2755431,0.00029622,2]
[328580308,1717561846369,-308.25,0.00029622,2]
[328580316,1717561846432,-2043.33722143,0.00029622,2]
[328580318,1717561846446,-1309.99765462,0.00029622,2]
[328580330,1717561846554,-9461.59515863,0.00029622,2]
[328580333,1717561846566,-4983.89863787,0.00029622,2]
[328581110,1717561884341,1804.68755728,0.00017259,2]
[328581111,1717561894319,1900.16906214,0.00017259,2]
[328581112,1717561927377,1875.14338058,0.00017259,2]
[328581113,1717562210554,1200.2,0.00028,90]
[328581133,1717563033283,-200.0,0.00017158,2]
[328581134,1717563033292,-606.24166197,0.00017159,2]
[328581135,1717563033305,-935.93930894,0.00017159,2]
[328581136,1717563033316,-6114.82505261,0.00017159,2]
[328581137,1717563033329,-404.0000001,0.00017159,2]
[328581138,1717563033340,-74.86546014,0.00017159,2]
[328581139,1717563033353,-251.47453986,0.00017225,2]
[328581140,1717563033365,-420.0,0.00017225,2]
[328581141,1717563033411,-2246.87101281,0.00017225,2]
[328581142,1717563033424,-956.33828,0.00017225,2]
[328581143,1717563033521,-919.32000046,0.00017225,2]
[328581144,1717563033533,-630.85,0.00017225,2]
[328581145,1717563033546,-1592.4647743,0.00017225,2]
[328581146,1717563033557,-647.77,0.00017225,2]
[328581147,1717563033569,-2070.14450499,0.00017225,2]
[328581148,1717563033638,-75248.91036984,0.00017225,2]
[328581149,1717563033648,-358.20152403,0.00017259,2]
[328581150,1717563033657,-1046.18219115,0.00017259,2]
[328581151,1717563033667,-20221.758,0.00017259,2]
[328581152,1717563033676,-155.0,0.0002,2]
[328581153,1717563033687,-226.57668191,0.000201,2]
[328581154,1717563033696,-158.94995359,0.00023971,2]
[328581156,1717563033706,-150.0,0.00023973,2]
[328581158,1717563033715,-499.99,0.00023973,2]
[328581160,1717563033724,-150.99,0.00023973,2]
[328581162,1717563033734,-174.67953645,0.00023998,2]
[328581164,1717563033743,-999.99,0.00023998,2]
[328581166,1717563033753,-161.99,0.00024384,2]
[328581168,1717563033762,-178.1,0.00024384,2]
[328581170,1717563033771,-592.48,0.00025245,2]
[328581172,1717563033781,-250.0,0.00026624,2]
[328581174,1717563033790,-250.0,0.00026658,2]
[328581176,1717563033800,-7640.29,0.00026691,2]
[328581178,1717563033809,-250.0,0.00026808,2]
[328581180,1717563033819,-2327.04,0.00026859,2]
[328581182,1717563033828,-366.55,0.0002689,3]
[328581184,1717563033838,-10564.58051399,0.000269,2]
[328581186,1717563033847,-150.36579679,0.00026921,2]
[328581188,1717563033857,-30690.49314053,0.00027,2]
[328581190,1717563033866,-1955.92,0.00027021,2]
[328581192,1717563033876,-202.97,0.00027117,2]
[328581194,1717563033885,-10564.58051392,0.00027233,2]
[328581196,1717563033894,-592.48,0.00027509,2]
[328581198,1717563033904,-10564.58051392,0.00027567,2]
[328581200,1717563033913,-1576.04,0.00027628,2]
[328581202,1717563033922,-1000.0,0.0002768,2]
[328581205,1717563033932,-159.054365,0.00027716,2]
[328581207,1717563033941,-721.375399,0.00027716,2]
[328581209,1717563033951,-601.111706,0.00027716,2]
[328581211,1717563033960,-254.486982,0.00027716,2]
[328581213,1717563033971,-373.27,0.00027803,2]
[328581215,1717563033981,-10564.58051392,0.000279,2]
[328581217,1717563033990,-150.36579679,0.00027914,2]
[328581219,1717563033999,-3000.0,0.00027962,2]
[328581221,1717563034009,-175.714979,0.00027968,2]
[328581223,1717563034019,-3000.0,0.00027981,2]
[328581225,1717563034028,-3000.0,0.00027989,2]
[328581227,1717563034038,-253.46,0.0002799,2]
[328581229,1717563034047,-2999.99,0.00027996,2]
[328581231,1717563034057,-3000.0,0.00027997,2]
[328581233,1717563034066,-257.8719227,0.00028,2]
[328581235,1717563034075,-446.60502179,0.00028,2]
[328581237,1717563034085,-37565.32497323,0.00028,2]
[328581239,1717563034094,-913.63,0.00028035,2]
[328581241,1717563034103,-721.375399,0.00028062,2]
[328581243,1717563034113,-601.111706,0.00028062,2]
[328581245,1717563034122,-254.486982,0.00028062,2]
[328581247,1717563034132,-10564.58051392,0.00028233,2]
[328581249,1717563034141,-721.375399,0.00028409,2]
[328581251,1717563034151,-601.111706,0.00028409,2]